bitfinex-derivatives/quotes_BTCF0:USTF0_20251208
["timestamp","ask_amount","ask_price","bid_price","bid_amount"]
[1765204389945,0.013905,91703.0,91664.0,0.03076]
[1765204389946,0.24945732,91680.0,91679.0,0.10245]
[1765204390240,0.0109077,91680.0,91679.0,0.10245]
[1765204390540,0.00016326,91684.0,91683.0,0.1133573]
[1765204390843,0.0109052,91701.0,91700.0,0.05035]
[1765204391245,0.0109046,91707.0,91696.0,0.0109057]
[1765204391437,0.24945732,91706.0,91681.0,0.03076]
[1765204391838,0.00109034,91715.0,91714.0,0.10245]
[1765204392041,0.0109014,91733.0,91720.0,0.09969]
[1765204392343,0.99352,91745.0,91732.0,0.12986]
[1765204392344,0.0109003,91742.0,91732.0,0.12986]
[1765204393043,0.26035762,91742.0,91732.0,0.12986]
[1765204393252,0.01,91733.0,91732.0,0.12986]
[1765204393839,0.002,91742.0,91741.0,0.09969]
[1765204394044,0.03144,91783.0,91751.0,0.0108992]
[1765204394045,0.24945732,91770.0,91751.0,0.0108992]
[1765204394252,0.24945732,91780.0,91769.0,0.0508]
[1765204394543,0.38168,91783.0,91769.0,0.0508]
[1765204394544,0.0108955,91783.0,91769.0,0.0508]
[1765204394732,0.0108966,91774.0,91769.0,0.0508]
[1765204394932,0.24945732,91780.0,91762.0,0.00016349]
[1765204394933,0.10223,91763.0,91762.0,0.00016349]
[1765204395446,0.5154,91785.0,91762.0,0.00016349]
[1765204395447,0.0108971,91770.0,91762.0,0.00016349]
[1765204395640,0.24945732,91772.0,91762.0,0.00016349]
[1765204395840,0.24945732,91772.0,91769.0,0.001]
[1765204396043,0.0108965,91774.0,91769.0,0.001]
[1765204396247,0.0165,91800.0,91773.0,0.09969]
[1765204396448,0.0108948,91789.0,91773.0,0.09969]
[1765204396946,0.5154,91799.0,91770.0,0.041067]
[1765204396947,0.0108941,91795.0,91788.0,0.09969]
[1765204397242,0.24945732,91810.0,91797.0,0.09969]
[1765204397550,0.24945732,91800.0,91789.0,0.03017]
[1765204397739,0.24945732,91800.0,91782.0,0.00016349]
[1765204397939,0.24945732,91792.0,91782.0,0.00016349]
[1765204398149,0.5154,91816.0,91782.0,0.00016349]
[1765204398337,0.24945732,91800.0,91782.0,0.00016349]
[1765204398537,0.002,91789.0,91788.0,0.09969]
[1765204399137,0.24945732,91800.0,91789.0,0.0410647]
[1765204399338,0.24945732,91810.0,91800.0,0.0108933]
[1765204399640,0.009,91816.0,91789.0,0.03017]
[1765204399641,0.009,91816.0,91815.0,0.09969]
[1765204399833,0.009,91816.0,91815.0,0.0508]
[1765204400039,0.009,91816.0,91815.0,0.09969]
[1765204400040,0.004,91816.0,91815.0,0.09969]
[1765204400939,0.004,91816.0,91808.0,0.03017]
[1765204400940,0.11381674,91865.0,91825.0,0.09969]
[1765204400941,0.010888,91846.0,91825.0,0.09969]
[1765204401137,0.010888,91846.0,91845.0,0.09969]
[1765204401337,0.1194,91854.0,91836.0,0.00016339]
[1765204401532,0.1194,91854.0,91808.0,0.03017]
[1765204401533,0.10223,91837.0,91815.0,0.006]
[1765204401738,0.1131215,91816.0,91815.0,0.006]
[1765204401938,0.3796415,91816.0,91815.0,0.006]
[1765204402139,0.0108931,91803.0,91785.0,0.0108951]
[1765204402341,0.0108931,91803.0,91785.0,1.5108951]
[1765204402537,0.0108937,91798.0,91797.0,0.09969]
[1765204402851,0.0108937,91798.0,91789.0,0.00016339]
[1765204402852,0.10223,91795.0,91789.0,0.00016339]
[1765204403152,0.10223,91795.0,91794.0,2e-08]
[1765204403449,0.0108975,91766.0,91765.0,0.09969]
[1765204403747,0.0108946,91790.0,91736.0,0.010901]
[1765204403748,0.0108994,91750.0,91736.0,0.010901]
[1765204403940,0.0108999,91746.0,91734.0,0.00021802]
[1765204404139,0.0109011,91736.0,91734.0,0.00021802]
[1765204404645,0.00016349,91744.0,91710.0,0.010904]
[1765204404846,0.0109026,91723.0,91704.0,0.0109048]
[1765204405050,0.00013628,91722.0,91721.0,0.09969]
[1765204405246,0.08772,91760.0,91722.0,0.0109026]
[1765204405548,0.0109005,91741.0,91734.0,0.011]
[1765204405749,0.00016349,91750.0,91734.0,0.011]
[1765204405750,0.0611811,91735.0,91734.0,0.011]
[1765204406042,0.1131311,91735.0,91734.0,0.011]
[1765204406234,0.010901,91737.0,91721.0,0.004]
[1765204406435,0.0109027,91722.0,91721.0,0.004]
[1765204406835,0.0109038,91713.0,91694.0,0.03017]
[1765204407246,0.00016349,91713.0,91694.0,0.03033349]
[1765204407445,0.00016349,91713.0,91712.0,0.09969]
[1765204407843,0.001,91722.0,91721.0,0.09969]
[1765204408040,0.0109029,91721.0,91699.0,0.0109054]
[1765204408440,0.03246,91749.0,91721.0,0.004]
[1765204408636,0.0108999,91746.0,91721.0,0.004]
[1765204408841,0.0109005,91741.0,91724.0,0.00016349]
[1765204409145,0.01106379,91743.0,91724.0,0.00016349]
[1765204409341,0.0109019,91729.0,91724.0,0.00016349]
[1765204409541,0.05028,91725.0,91724.0,0.00016349]
[1765204410140,0.0109019,91729.0,91724.0,0.00116349]
[1765204410542,0.00016349,91743.0,91724.0,0.00116349]
[1765204410745,0.0109004,91742.0,91724.0,0.01206589]
[1765204410946,0.0109021,91727.0,91724.0,0.00116349]
[1765204411146,0.0109007,91739.0,91724.0,0.00116349]
[1765204411344,0.0109007,91739.0,91725.0,0.0109023]
[1765204411650,0.00016349,91743.0,91724.0,0.00516349]
[1765204411949,0.0109009,91737.0,91724.0,0.01606589]
[1765204412249,0.0109009,91737.0,91724.0,0.00516349]
[1765204412551,0.0109019,91729.0,91724.0,0.00316349]
[1765204412743,0.05028,91725.0,91724.0,0.00316349]
[1765204413248,0.0109019,91729.0,91724.0,0.00316349]
[1765204413449,0.0109016,91732.0,91724.0,0.00016349]
[1765204413642,0.19992,91746.0,91724.0,0.00316349]
[1765204413643,0.19098509,91746.0,91724.0,0.00316349]
[1765204413849,0.010901,91737.0,91724.0,0.00316349]
[1765204414054,0.0109001,91744.0,91724.0,0.00316349]
[1765204414254,0.01918,91770.0,91724.0,0.00416349]
[1765204414548,0.00016349,91756.0,91724.0,0.00416349]
[1765204414750,0.00016349,91756.0,91731.0,0.00016349]
[1765204414751,0.002,91746.0,91731.0,0.00016349]
[1765204415048,0.002,91746.0,91745.0,0.09969]
[1765204415351,0.00016349,91756.0,91751.0,0.0108991]
[1765204415649,0.00216349,91756.0,91755.0,0.09969]
[1765204415846,0.00216349,91756.0,91740.0,0.0410705]
[1765204416045,0.00216349,91756.0,91740.0,0.03017]
[1765204416241,0.00016349,91756.0,91740.0,0.0410705]
[1765204416443,0.0108988,91755.0,91751.0,0.001]
[1765204416948,0.00016349,91756.0,91751.0,0.001]
[1765204417154,0.0108988,91755.0,91751.0,0.001]
[1765204417354,0.00016349,91756.0,91751.0,0.001]
[1765204417740,0.00016349,91756.0,91751.0,0.003]
[1765204417945,0.00016349,91756.0,91751.0,0.002]
[1765204418352,0.10223,91752.0,91751.0,0.002]
[1765204419049,0.61887,91752.0,91751.0,0.002]
[1765204419351,0.61887,91752.0,91751.0,0.003]
[1765204420252,0.6297691,91752.0,91751.0,0.003]
[1765204420650,0.5275391,91752.0,91731.0,0.00016349]
[1765204420855,0.1455915,91732.0,91700.0,0.02907867]
[1765204421153,0.1455915,91732.0,91699.0,0.0109054]
[1765204421154,0.03246,91732.0,91699.0,0.0109054]
[1765204421358,0.0109036,91714.0,91682.0,0.03998607]
[1765204421559,0.0109048,91705.0,91695.0,0.0109059]
[1765204421856,0.1131315,91732.0,91731.0,0.001]
[1765204422046,0.10196,91732.0,91731.0,0.001]
[1765204422451,0.05128,91732.0,91731.0,0.001]
[1765204422651,0.05128,91732.0,91722.0,0.00016358]
[1765204422652,0.51684,91732.0,91723.0,0.0109026]
[1765204422857,0.10101,91723.0,91722.0,0.00016358]
[1765204423246,0.3094221,91727.0,91722.0,0.00016358]
[1765204423450,0.1119126,91723.0,91722.0,0.00016358]
[1765204423754,0.0109026,91723.0,91722.0,0.00016358]
[1765204423958,0.03988,91732.0,91723.0,0.0109026]
[1765204424149,0.00016358,91741.0,91732.0,0.0109014]
[1765204424558,0.010901,91736.0,91731.0,0.00038151]
[1765204424856,0.0109015,91732.0,91731.0,0.00038151]
[1765204425057,0.00016358,91741.0,91732.0,0.03138]
[1765204425261,0.00016358,91741.0,91740.0,0.09757]
[1765204425463,0.00216358,91741.0,91740.0,0.09757]
[1765204425655,0.0109011,91736.0,91731.0,0.00038151]
[1765204425959,0.00216358,91741.0,91735.0,0.0109011]
[1765204426158,0.00216358,91741.0,91722.0,0.00016358]
[1765204426358,0.00216358,91741.0,91723.0,0.0109026]
[1765204426655,0.00216358,91741.0,91722.0,0.00016358]
[1765204426656,0.0109015,91732.0,91722.0,0.00016358]
[1765204427057,0.1119115,91732.0,91731.0,0.002]
[1765204427259,0.1119115,91732.0,91722.0,0.00016358]
[1765204427260,0.1119126,91723.0,91722.0,0.00016358]
[1765204427460,0.0428715,91732.0,91694.0,0.0410759]
[1765204427461,0.0109042,91709.0,91698.0,0.0109055]
[1765204427654,0.0109051,91702.0,91688.0,0.0109067]
[1765204427855,0.0109055,91699.0,91688.0,0.0109067]
[1765204428055,0.24926365,91710.0,91683.0,0.0109072]
[1765204428259,0.24926365,91710.0,91689.0,0.0109066]
[1765204428455,0.24926365,91710.0,91692.0,0.00024666]
[1765204428456,0.0109059,91695.0,91692.0,0.00024666]
[1765204428663,0.10101,91693.0,91659.0,0.02907867]
[1765204428853,0.24926365,91670.0,91668.0,0.010909]
[1765204429057,0.0109086,91673.0,91646.0,0.02907867]
[1765204429258,0.010909,91669.0,91651.0,0.010911]
[1765204429462,0.24926365,91670.0,91644.0,0.0109119]
[1765204429662,0.24926365,91661.0,91648.0,0.00016358]
[1765204429864,0.0109101,91660.0,91648.0,0.00016358]
[1765204430065,0.0109107,91655.0,91648.0,0.00016358]
[1765204430262,0.24926365,91661.0,91648.0,0.00016358]
[1765204430453,0.0109108,91654.0,91648.0,0.00016358]
[1765204430657,0.010911,91652.0,91648.0,0.00016358]
[1765204430859,8.947e-05,91653.0,91648.0,0.00016358]
[1765204431060,8.947e-05,91653.0,91652.0,0.09757]
[1765204432964,8.947e-05,91653.0,91648.0,0.01016358]
[1765204433157,0.00108947,91653.0,91652.0,0.006]
[1765204433665,0.00108947,91653.0,91652.0,0.05593]
[1765204433969,0.00108947,91653.0,91652.0,0.10357]
[1765204434167,0.00108947,91653.0,91652.0,0.10857]
[1765204435162,0.10209947,91653.0,91652.0,0.011]
[1765204435357,0.10209947,91653.0,91634.0,0.02907867]
[1765204435358,0.10101,91649.0,91621.0,0.02907867]
[1765204435662,0.24926365,91640.0,91628.0,0.0109137]
[1765204435865,0.24926365,91640.0,91618.0,0.03138]
[1765204435866,0.0109129,91637.0,91622.0,0.0109146]
[1765204436065,8.548e-05,91639.0,91630.0,0.0109136]
[1765204436367,8.548e-05,91639.0,91625.0,0.00010987]
[1765204436570,0.24926365,91635.0,91626.0,0.0109141]
[1765204436969,8.548e-05,91639.0,91638.0,0.09757]
[1765204437461,8.548e-05,91639.0,91625.0,0.00310987]
[1765204437462,0.0109137,91630.0,91625.0,0.00310987]
[1765204437661,0.00108548,91639.0,91625.0,0.00310987]
[1765204437662,0.0109131,91635.0,91625.0,0.00310987]
[1765204437866,0.0109127,91638.0,91626.0,0.0109141]
[1765204438373,0.00108548,91639.0,91638.0,0.10057]
[1765204438869,0.00108548,91639.0,91638.0,0.003]
[1765204439073,0.04698548,91639.0,91638.0,0.003]
[1765204439369,0.00108548,91639.0,91638.0,0.003]
[1765204439974,0.001,91630.0,91626.0,0.001]
[1765204440262,0.001,91630.0,91629.0,0.04875]
[1765204440463,0.0109129,91636.0,91626.0,0.011914]
[1765204440666,0.00208548,91639.0,91638.0,0.001]
[1765204440966,0.00208548,91639.0,91638.0,0.05075]
[1765204441163,8.548e-05,91639.0,91638.0,0.12673]
[1765204441562,8.548e-05,91639.0,91638.0,0.12573]
[1765204441763,0.0109139,91629.0,91626.0,0.002]
[1765204441963,0.0109158,91613.0,91591.0,0.02907867]
[1765204442162,0.0459,91605.0,91576.0,0.01092]
[1765204442372,0.0459,91605.0,91598.0,0.0109173]
[1765204442562,9.647e-05,91612.0,91576.0,0.01092]
[1765204442765,0.0109166,91606.0,91596.0,0.0109177]
[1765204442962,9.647e-05,91612.0,91585.0,0.010919]
[1765204443170,9.647e-05,91612.0,91610.0,0.0109159]
[1765204443371,0.0109163,91608.0,91597.0,0.0109175]
[1765204443672,0.0109163,91608.0,91566.0,0.028]
[1765204443673,0.010919,91585.0,91573.0,0.0109203]
[1765204443877,0.24926365,91590.0,91577.0,0.0109198]
[1765204444066,0.0109191,91584.0,91572.0,0.0109205]
[1765204444270,0.0109188,91587.0,91572.0,0.0109205]
[1765204444470,0.0109194,91582.0,91567.0,0.0109211]
[1765204444666,0.24926365,91580.0,91565.0,0.00109213]
[1765204444870,0.1026503,91574.0,91573.0,0.002]
[1765204445372,0.24926365,91580.0,91565.0,0.00109213]
[1765204445373,0.1026512,91566.0,91565.0,0.00109213]
[1765204445578,0.0459,91552.0,91551.0,0.00021846]
[1765204445791,0.0459,91552.0,91540.0,0.00109242]
[1765204445792,0.0459,91541.0,91540.0,0.00109242]
[1765204446072,0.00012484,91541.0,91540.0,0.13774672]
[1765204446472,0.00012484,91541.0,91540.0,0.12682242]
[1765204447072,0.00212484,91541.0,91540.0,0.13682242]
[1765204447373,0.00312484,91541.0,91540.0,0.11782242]
[1765204447580,0.14927316,91560.0,91540.0,0.04809242]
[1765204447768,0.14927316,91560.0,91549.0,0.09773]
[1765204448081,0.0109227,91554.0,91540.0,0.02009242]
[1765204448377,0.00016378,91561.0,91540.0,0.04809242]
[1765204448571,0.00016378,91561.0,91560.0,0.04875]
[1765204448775,0.01108568,91561.0,91540.0,0.05901672]
[1765204448974,0.01116676,91561.0,91540.0,0.05901672]
[1765204449171,0.01116676,91561.0,91545.0,0.0109237]
[1765204449383,0.0109221,91559.0,91540.0,0.04309242]
[1765204449674,0.001,91560.0,91540.0,0.01509242]
[1765204449870,0.0109233,91549.0,91540.0,0.01409242]
[1765204450072,0.0109233,91549.0,91540.0,0.01209242]
[1765204450277,0.14927316,91550.0,91541.0,0.0109242]
[1765204450475,0.002,91559.0,91546.0,0.0109236]
[1765204450677,0.002,91559.0,91540.0,0.01309242]
[1765204450678,0.09173,91541.0,91540.0,0.01309242]
[1765204450974,0.09173,91541.0,91540.0,0.01509242]
[1765204450975,0.09181108,91541.0,91540.0,0.01509242]
[1765204451176,8.108e-05,91541.0,91540.0,0.11282242]
[1765204451569,8.108e-05,91541.0,91540.0,0.00609242]
[1765204451770,0.09181108,91541.0,91540.0,0.00609242]
[1765204451977,0.09181108,91541.0,91540.0,0.00109242]
[1765204452171,0.09181108,91541.0,91540.0,0.01109242]
[1765204452373,0.04598108,91541.0,91540.0,0.01109242]
[1765204452871,0.04798108,91541.0,91540.0,0.01109242]
[1765204453066,0.09535108,91541.0,91540.0,0.01109242]
[1765204453266,0.09635108,91541.0,91540.0,0.02109242]
[1765204453677,0.00308108,91541.0,91540.0,0.02109242]
[1765204454479,0.00308108,91541.0,91540.0,0.06605242]
[1765204454776,0.00308108,91541.0,91540.0,0.02109242]
[1765204454981,0.00308108,91541.0,91540.0,0.12107672]
[1765204455178,0.05194108,91541.0,91540.0,0.02109242]
[1765204455382,0.11023528,91541.0,91540.0,0.02109242]
[1765204455882,0.09931108,91541.0,91526.0,0.00010673]
[1765204456073,0.1071559,91527.0,91526.0,0.00010673]
[1765204456277,0.09623,91516.0,91504.0,0.0109286]
[1765204456476,0.09623,91516.0,91498.0,0.0109293]
[1765204456685,0.09623,91516.0,91506.0,0.0109284]
[1765204456981,0.14943703,91525.0,91494.0,0.02691]
[1765204457170,0.14943703,91525.0,91512.0,0.02691]
[1765204457375,0.1071572,91516.0,91508.0,0.0109282]
[1765204457575,0.10925749,91516.0,91494.0,0.02691]
[1765204457977,0.09933029,91516.0,91515.0,0.01009272]
[1765204458885,0.09733029,91516.0,91515.0,0.01009272]
[1765204459082,0.00110029,91516.0,91515.0,0.01009272]
[1765204459281,0.09733029,91516.0,91515.0,0.01009272]
[1765204459482,0.09933029,91516.0,91515.0,0.01009272]
[1765204459783,0.09933029,91516.0,91494.0,0.02691]
[1765204459784,0.0109275,91514.0,91494.0,0.02691]
[1765204459987,0.00310029,91516.0,91515.0,0.08906]
[1765204460484,0.14927316,91540.0,91512.0,0.02691]
[1765204460676,0.2014424,91557.0,91512.0,0.02691]
[1765204460677,0.14927316,91522.0,91519.0,0.0109268]
[1765204460882,0.0109228,91554.0,91520.0,0.0109267]
[1765204460883,0.16019886,91530.0,91520.0,0.0109267]
[1765204461187,0.14927316,91530.0,91529.0,0.08906]
[1765204461387,0.010925,91535.0,91520.0,0.00016387]
[1765204461575,8.752e-05,91534.0,91532.0,0.0109252]
[1765204461777,8.752e-05,91534.0,91533.0,0.08906]
[1765204461976,0.02438,91580.0,91538.0,0.08906]
[1765204462183,0.02438,91580.0,91552.0,0.0109228]
[1765204462184,0.14927316,91560.0,91552.0,0.0109228]
[1765204462388,0.0109225,91556.0,91552.0,0.0109228]
[1765204462586,0.14927316,91560.0,91548.0,0.0109233]
[1765204462790,0.0109233,91550.0,91543.0,0.0109239]
[1765204462984,0.00016387,91556.0,91555.0,0.08906]
[1765204463191,0.00016387,91556.0,91540.0,0.0109243]
[1765204463390,0.14927316,91550.0,91538.0,0.0109246]
[1765204463777,0.14927316,91550.0,91537.0,0.00016387]
[1765204464189,0.00016387,91556.0,91545.0,0.0109238]
[1765204464394,0.00016387,91556.0,91537.0,0.00016387]
[1765204464395,0.010923,91552.0,91537.0,0.00016387]
[1765204464597,0.01108637,91556.0,91548.0,0.0109233]
[1765204464898,0.002,91550.0,91543.0,0.0119239]
[1765204465387,0.0109237,91546.0,91543.0,0.001]
[1765204465581,0.04886,91544.0,91543.0,0.001]
[1765204466093,0.0109237,91546.0,91543.0,0.001]
[1765204466280,0.002,91550.0,91546.0,0.0109236]
[1765204466484,0.002,91550.0,91549.0,0.08906]
[1765204466787,0.00016387,91556.0,91537.0,0.00016387]
[1765204466788,0.1071546,91538.0,91537.0,0.00016387]
[1765204467495,0.0109261,91525.0,91517.0,0.0109271]
[1765204467694,0.0109261,91525.0,91520.0,0.0109267]
[1765204467989,0.0109265,91522.0,91516.0,0.0109272]
[1765204468185,0.0109263,91524.0,91521.0,0.0109265]
[1765204468386,0.0109263,91524.0,91496.0,0.02907867]
[1765204468387,0.0109263,91524.0,91517.0,0.010927]
[1765204468586,0.0109272,91516.0,91513.0,0.00016387]
[1765204468789,0.14927316,91527.0,91520.0,0.0109267]
[1765204469082,0.010926,91526.0,91520.0,0.0109267]
[1765204469289,0.00016387,91532.0,91531.0,0.04496]
[1765204469480,0.00016387,91532.0,91531.0,0.08906]
[1765204469989,0.00016387,91532.0,91530.0,0.0109255]
[1765204469990,0.14927316,91560.0,91556.0,0.0109224]
[1765204470194,0.19388,91562.0,91561.0,0.0558818]
[1765204470584,0.19388,91562.0,91561.0,0.04496]
[1765204470881,0.00598,91576.0,91575.0,0.08906]
[1765204471182,0.16019046,91600.0,91588.0,0.0109185]
[1765204471385,0.29854632,91600.0,91566.0,0.02691]
[1765204471586,0.14927316,91580.0,91573.0,0.0109204]
[1765204471892,0.010918,91594.0,91579.0,0.0109196]
[1765204472193,0.14927316,91590.0,91566.0,0.02691]
[1765204472488,0.14927316,91580.0,91578.0,0.0109198]
[1765204472693,0.14927316,91588.0,91578.0,0.0109198]
[1765204472897,0.010918,91594.0,91582.0,0.0109193]
[1765204473083,0.14927316,91590.0,91582.0,0.0109193]
[1765204473286,0.14927316,91590.0,91585.0,0.0109189]
[1765204473485,0.16019156,91590.0,91580.0,0.0109195]
[1765204473790,0.022,91594.0,91590.0,0.0109184]
[1765204474191,0.022,91594.0,91593.0,0.08906]
[1765204474983,0.00016377,91596.0,91595.0,0.08906]
[1765204475815,0.00016377,91596.0,91595.0,0.04496]
[1765204475985,0.003,91594.0,91590.0,0.001]
[1765204476186,0.003,91594.0,91593.0,0.08906]
[1765204477189,0.02316377,91596.0,91595.0,0.09006]
[1765204477690,0.02316377,91596.0,91595.0,0.001]
[1765204477892,0.02316377,91596.0,91595.0,0.09006]
[1765204478091,0.00316377,91596.0,91595.0,0.09006]
[1765204478599,0.09939377,91596.0,91595.0,0.001]
[1765204478785,0.01616377,91596.0,91581.0,0.0109193]
[1765204479091,0.0109196,91581.0,91573.0,0.0109203]
[1765204479300,0.010919,91585.0,91578.0,0.0109198]
[1765204479688,0.14927316,91591.0,91573.0,0.0109204]
[1765204480088,0.14927316,91591.0,91581.0,0.0109195]
[1765204480293,0.0109187,91588.0,91581.0,0.0109195]
[1765204480598,0.14927316,91591.0,91580.0,0.0109195]
[1765204480599,0.002,91585.0,91580.0,0.0109195]
[1765204480999,0.0109191,91584.0,91580.0,0.0109195]
[1765204481194,0.002,91585.0,91584.0,0.11597]
[1765204481398,0.01716377,91596.0,91595.0,0.0999778]
[1765204482090,0.00016377,91596.0,91595.0,0.0999778]
[1765204482293,0.02116377,91596.0,91595.0,0.0999778]
[1765204482495,0.02116377,91596.0,91591.0,0.0109183]
[1765204482697,0.00016377,91596.0,91591.0,0.0109183]
[1765204482897,0.01716377,91596.0,91584.0,0.02691]
[1765204483092,0.01816377,91596.0,91584.0,0.02691]
[1765204483305,0.00116377,91596.0,91595.0,0.08051]
[1765204483498,0.01816377,91596.0,91594.0,0.0109178]
[1765204483699,0.01716377,91596.0,91594.0,0.0109178]
[1765204484004,0.01716377,91596.0,91590.0,0.00109183]
[1765204484005,0.03208147,91596.0,91590.0,0.00109183]
[1765204484299,0.02116377,91596.0,91595.0,0.16645]
[1765204484500,0.14927316,91640.0,91596.0,0.02678]
[1765204484800,0.0109124,91640.0,91635.0,0.010913]
[1765204484990,0.14927316,91650.0,91641.0,0.0109122]
[1765204485305,0.14927316,91650.0,91640.0,0.0109123]
[1765204485505,0.29854632,91650.0,91613.0,0.02678]
[1765204485801,0.12632,91654.0,91570.0,0.00099999]
[1765204485802,0.0109131,91635.0,91624.0,0.1773643]
[1765204486097,0.14927316,91640.0,91620.0,0.02678]
[1765204486098,0.010913,91636.0,91620.0,0.02678]
[1765204486400,0.00016377,91639.0,91638.0,0.08051]
[1765204486800,0.00016377,91639.0,91638.0,0.19323]
[1765204487296,0.01921846,91643.0,91638.0,0.19323]
[1765204487297,0.01495201,91643.0,91642.0,0.16645]
[1765204488405,0.14943693,91652.0,91638.0,0.02678]
[1765204488599,0.01,91639.0,91638.0,0.2051427]
[1765204489100,0.002,91639.0,91610.0,0.0109159]
[1765204489303,0.0109138,91629.0,91620.0,0.0376947]
[1765204489494,0.14927316,91630.0,91619.0,0.01107857]
[1765204489690,0.0109137,91629.0,91622.0,0.0109145]
[1765204489898,0.14927316,91630.0,91619.0,0.00016377]
[1765204490199,0.0109142,91625.0,91619.0,0.00016377]
[1765204490396,0.005,91629.0,91620.0,0.0119148]
[1765204490699,0.005,91629.0,91626.0,0.010914]
[1765204490896,0.005,91629.0,91628.0,0.16645]
[1765204491296,0.005,91629.0,91621.0,0.0109146]
[1765204491297,0.16533,91629.0,91621.0,0.0109146]
[1765204491502,0.005,91629.0,91628.0,0.16645]
[1765204491892,0.007,91630.0,91629.0,0.08051]
[1765204492503,0.00016368,91634.0,91629.0,0.08051]
[1765204492797,0.00016368,91634.0,91623.0,0.0109144]
[1765204492993,0.00016368,91634.0,91633.0,0.1773633]
[1765204494103,0.00016368,91634.0,91633.0,0.08051]
[1765204494494,0.00016368,91634.0,91633.0,0.16645]
[1765204494696,0.00816368,91634.0,91633.0,0.16645]
[1765204494896,0.01016368,91634.0,91633.0,0.16645]
[1765204495302,0.01016368,91634.0,91633.0,0.16745]
[1765204497600,0.0109105,91656.0,91654.0,0.0109108]
[1765204497905,0.0109102,91659.0,91657.0,0.0109103]
[1765204498105,0.14927316,91660.0,91653.0,0.0109108]
[1765204498106,0.0109106,91656.0,91653.0,0.0109108]
[1765204498706,0.0159106,91656.0,91654.0,0.001]
[1765204498906,0.0199106,91656.0,91655.0,0.0109106]
[1765204499303,0.009,91656.0,91655.0,0.0109106]
[1765204499504,0.006,91656.0,91655.0,0.0109106]
[1765204500106,0.005,91656.0,91655.0,0.001]
[1765204500311,0.005,91656.0,91645.0,0.00016368]
[1765204500312,0.1712417,91646.0,91645.0,0.00016368]
[1765204500509,0.02744,91647.0,91617.0,0.02907867]
[1765204500713,0.0109133,91633.0,91628.0,0.0109138]
[1765204500900,0.0109141,91626.0,91614.0,0.0109155]
[1765204501102,0.0306,91639.0,91604.0,0.02907867]
[1765204501298,0.0306,91639.0,91599.0,0.03887151]
[1765204501299,0.0109167,91604.0,91599.0,9.994e-05]
[1765204501615,0.00016368,91611.0,91610.0,0.16645]
[1765204501808,0.001,91633.0,91629.0,0.16645]
[1765204502000,0.0119133,91633.0,91632.0,0.16645]
[1765204502200,0.0119133,91633.0,91628.0,0.011]
[1765204502201,0.16033,91629.0,91628.0,0.011]
[1765204502411,0.1712454,91615.0,91614.0,0.009]
[1765204502914,0.0892165,91606.0,91605.0,0.00016368]
[1765204503206,0.1712465,91606.0,91605.0,0.00016368]
[1765204504810,0.0109161,91610.0,91605.0,0.00016368]
[1765204505206,0.0109161,91610.0,91605.0,0.01108028]
[1765204505405,0.007,91606.0,91605.0,0.17574028]
[1765204505604,0.71678258,91606.0,91605.0,0.17574028]
[1765204505825,0.71178258,91606.0,91605.0,0.17474028]
[1765204506009,0.71178258,91606.0,91605.0,0.17574028]
[1765204506209,0.70978258,91606.0,91605.0,0.17574028]
[1765204506610,0.71478258,91606.0,91605.0,0.17574028]
[1765204506915,0.16372,91606.0,91605.0,0.00116368]
[1765204507221,0.16372,91606.0,91574.0,0.0109202]
[1765204507222,0.0109167,91605.0,91574.0,0.0109202]
[1765204507408,0.60303977,91585.0,91584.0,0.0109191]
[1765204507714,0.60303977,91585.0,91584.0,0.1706591]
[1765204507916,0.47814977,91585.0,91584.0,0.15974]
[1765204508216,0.0109201,91576.0,91575.0,0.00016377]
[1765204508412,0.1696401,91576.0,91575.0,0.00016377]
[1765204508712,0.15872,91576.0,91575.0,0.00016377]
[1765204509114,0.47924971,91585.0,91568.0,0.0109209]
[1765204509313,0.47924971,91585.0,91549.0,0.0109232]
[1765204509314,0.04907,91579.0,91549.0,0.0109232]
[1765204509616,0.04907,91579.0,91568.0,0.0109209]
[1765204509617,0.0109205,91573.0,91568.0,0.0109209]
[1765204509809,9.994e-05,91572.0,91571.0,0.1706606]
[1765204510213,0.07637994,91572.0,91571.0,0.0109206]
[1765204510517,9.994e-05,91572.0,91571.0,0.1706606]
[1765204510711,0.15872,91563.0,91562.0,0.01108547]
[1765204511115,0.15872,91563.0,91562.0,0.00016377]
[1765204512214,0.15972,91563.0,91562.0,0.00316377]
[1765204512407,0.0109247,91538.0,91534.0,0.00013911]
[1765204512606,0.0605317,91562.0,91534.0,0.00013911]
[1765204512607,0.18711,91535.0,91534.0,0.00013911]
[1765204512810,9.994e-05,91537.0,91534.0,0.00013911]
[1765204513016,0.18711,91535.0,91534.0,0.00013911]
[1765204513416,9.994e-05,91537.0,91535.0,0.0109249]
[1765204513616,9.994e-05,91537.0,91536.0,0.1815]
[1765204514115,9.994e-05,91537.0,91535.0,0.0109249]
[1765204514320,0.09406,91535.0,91534.0,0.00013911]
[1765204514516,0.09406,91535.0,91534.0,0.00813911]
[1765204514822,0.002,91535.0,91534.0,0.21456421]
[1765204515016,0.002,91535.0,91534.0,0.20363911]
[1765204515219,0.00109994,91537.0,91535.0,0.002]
[1765204515417,0.18711,91536.0,91535.0,0.002]
[1765204515624,0.1980348,91536.0,91535.0,0.002]
[1765204515826,0.1980348,91536.0,91535.0,0.001]
[1765204516026,0.09406,91535.0,91534.0,0.00413911]
[1765204516711,0.18711,91535.0,91534.0,0.00413911]
[1765204516917,9.994e-05,91537.0,91534.0,0.00413911]
[1765204517622,0.0109248,91536.0,91535.0,0.002]
[1765204517821,0.1980348,91536.0,91535.0,0.002]
[1765204518022,0.2000348,91536.0,91535.0,0.003]
[1765204518328,0.2000348,91536.0,91535.0,0.001]
[1765204519224,0.2000348,91536.0,91535.0,0.003]
[1765204519429,0.198036,91526.0,91525.0,0.00016387]
[1765204519636,0.18711,91526.0,91525.0,0.00016387]
[1765204519823,0.25005227,91535.0,91525.0,0.00016387]
[1765204520022,0.25005227,91535.0,91532.0,0.0109252]
[1765204520330,0.002,91536.0,91525.0,0.00016387]
[1765204520331,0.002,91536.0,91535.0,0.1924249]
[1765204520834,0.002,91536.0,91535.0,0.1055849]
[1765204521337,0.002,91536.0,91530.0,0.0109254]
[1765204521338,0.04961,91536.0,91530.0,0.0109254]
[1765204521537,0.04961,91536.0,91535.0,0.001]
[1765204521734,0.14367,91536.0,91535.0,0.001]
[1765204522037,0.23672,91536.0,91535.0,0.001]
[1765204522632,0.23972,91536.0,91535.0,0.002]